bitfinex/quotes_SOLUSD_20230120
["timestamp","ask_amount","ask_price","bid_price","bid_amount"]
[1674235829181,146.0465,22.184,22.158,17.0]
[1674235829409,146.0465,22.184,22.159,33.85]
[1674235829709,10.0,22.183,22.16,17.0]
[1674235829917,33.82,22.182,22.16,17.0]
[1674235830108,27.49,22.18,22.161,20.0]
[1674235830319,33.82,22.179,22.158,20.0]
[1674235830529,33.82,22.182,22.156,20.0]
[1674235830745,10.0,22.181,22.157,43.86]
[1674235830967,10.0,22.181,22.158,20.0]
[1674235831180,10.0,22.181,22.159,33.85]
[1674235831375,10.0,22.181,22.16,10.0]
[1674235831584,10.0,22.181,22.161,70.85]
[1674235832006,10.0,22.181,22.161,20.0]
[1674235832215,10.0,22.179,22.161,20.0]
[1674235832439,10.0,22.179,22.156,10.0]
[1674235832440,10.0,22.179,22.157,53.86]
[1674235832631,10.0,22.177,22.157,33.86]
[1674235832842,10.0,22.177,22.144,112.2867]
[1674235832843,33.83,22.176,22.154,33.86]
[1674235833049,33.83,22.176,22.151,33.87]
[1674235833494,33.83,22.176,22.155,65.4325629]
[1674235833701,10.0,22.175,22.156,33.86]
[1674235834109,10.0,22.175,22.157,20.0]
[1674235834755,10.0,22.175,22.153,20.0]
[1674235835062,10.0,22.175,22.154,33.86]
[1674235835278,10.0,22.175,22.155,20.0]
[1674235835585,10.0,22.175,22.156,33.86]
[1674235835800,10.0,22.175,22.157,20.0]
[1674235836007,10.0,22.175,22.158,33.86]
[1674235836221,10.0,22.175,22.159,20.0]
[1674235836625,10.0,22.175,22.16,17.0]
[1674235836857,10.0,22.175,22.161,20.0]
[1674235837073,10.0,22.175,22.162,17.0]
[1674235837994,10.0,22.179,22.162,50.85]
[1674235838201,10.0,22.181,22.163,30.0]
[1674235838406,10.0,22.199,22.164,51.81]
[1674235838407,33.81,22.188,22.164,51.81]
[1674235838634,33.81,22.191,22.17,27.44]
[1674235838831,43.8,22.192,22.171,53.84]
[1674235839049,43.8,22.192,22.172,17.0]
[1674235839262,10.0,22.192,22.173,33.83]
[1674235839469,10.0,22.192,22.174,17.0]
[1674235840322,10.0,22.192,22.172,17.0]
[1674235840513,10.0,22.192,22.173,33.83]
[1674235840725,10.0,22.192,22.174,17.0]
[1674235841353,10.0,22.192,22.173,17.0]
[1674235841997,10.0,22.192,22.174,33.83]
[1674235842189,10.0,22.192,22.175,17.0]
[1674235842817,10.0,22.192,22.172,33.83]
[1674235843032,43.8,22.192,22.166,33.84]
[1674235843260,10.0,22.191,22.168,10.0]
[1674235843574,33.81,22.19,22.169,53.84]
[1674235844108,33.81,22.19,22.17,17.0]
[1674235844321,33.81,22.19,22.171,20.0]
[1674235844507,10.0,22.187,22.172,17.0]
[1674235847791,10.0,22.187,22.172,37.39358979]
[1674235848007,10.0,22.187,22.173,33.83]
[1674235848203,10.0,22.187,22.174,17.0]
[1674235848419,10.0,22.187,22.175,33.83]
[1674235848621,10.0,22.187,22.173,33.83]
[1674235848830,10.0,22.187,22.172,33.83]
[1674235849455,10.0,22.187,22.171,20.0]
[1674235849999,10.0,22.187,22.16,33.85]
[1674235850211,10.0,22.187,22.15,27.44]
[1674235850212,27.63,22.18,22.156,33.86]
[1674235850529,10.0,22.178,22.156,33.86]
[1674235850856,33.83,22.177,22.156,33.86]
[1674235851160,10.0,22.176,22.156,33.86]
[1674235851467,10.0,22.176,22.155,33.86]
[1674235851689,10.0,22.176,22.156,20.0]
[1674235851996,10.0,22.176,22.155,33.86]
[1674235852187,10.0,22.176,22.152,33.87]
[1674235852397,10.0,22.176,22.153,10.0]
[1674235852631,10.0,22.176,22.154,50.86]
[1674235852819,10.0,22.176,22.155,10.96]
[1674235853029,10.0,22.176,22.156,50.86]
[1674235853243,10.0,22.176,22.157,20.0]
[1674235853450,10.0,22.176,22.158,17.0]
[1674235853683,10.0,22.176,22.159,20.0]
[1674235853986,10.0,22.176,22.16,17.0]
[1674235854200,10.0,22.176,22.156,33.86]
[1674235854201,10.0,22.176,22.161,20.0]
[1674235854809,10.0,22.176,22.156,20.0]
[1674235855037,10.0,22.176,22.158,10.0]
[1674235855271,10.0,22.176,22.159,53.85]
[1674235855459,43.81,22.189,22.16,37.44]
[1674235855783,109.6571,22.184,22.161,70.85]
[1674235855990,109.6571,22.184,22.162,0.96]
[1674235856182,109.6571,22.184,22.163,33.85]
[1674235856393,109.6571,22.184,22.165,10.0]
[1674235856710,10.0,22.183,22.167,10.0]
[1674235857033,10.0,22.183,22.168,70.84]
[1674235857228,10.0,22.183,22.169,20.0]
[1674235858080,10.0,22.183,22.162,20.0]
[1674235858299,10.0,22.183,22.163,33.85]
[1674235858509,10.0,22.183,22.164,20.0]
[1674235858828,10.0,22.183,22.165,33.85]
[1674235859035,10.0,22.183,22.166,37.0]
[1674235860184,10.0,22.183,22.167,33.84]
[1674235860382,10.0,22.183,22.168,47.0]
[1674235860710,10.0,22.183,22.169,33.84]
[1674235860927,10.0,22.183,22.17,37.0]
[1674235861134,10.0,22.183,22.171,33.84]
[1674235861348,10.0,22.183,22.172,37.0]
[1674235863540,10.0,22.183,22.172,20.0]
[1674235863771,10.0,22.183,22.168,20.0]
[1674235863960,10.0,22.183,22.169,33.84]
[1674235864290,10.0,22.183,22.17,20.0]
[1674235864700,10.0,22.183,22.168,53.84]
[1674235864914,10.0,22.183,22.169,17.0]
[1674235865108,10.0,22.183,22.17,20.0]
[1674235865324,10.0,22.183,22.166,33.84]
[1674235865658,10.0,22.183,22.161,33.85]
[1674235866510,10.0,22.183,22.162,17.0]
[1674235866692,10.0,22.183,22.163,33.85]
[1674235866903,10.0,22.183,22.164,17.0]
[1674235867130,10.0,22.183,22.165,33.85]
[1674235867444,10.0,22.186,22.166,17.0]
[1674235867649,10.0,22.186,22.167,33.84]
[1674235867869,10.0,22.186,22.168,17.0]
[1674235868272,43.82,22.185,22.168,17.0]
[1674235868482,43.82,22.185,22.161,33.85]
[1674235868890,43.82,22.185,22.159,33.85]
[1674235869316,43.82,22.185,22.156,33.86]
[1674235869531,17.0,22.184,22.156,33.86]
[1674235869741,33.82,22.183,22.156,33.86]
[1674235869947,10.0,22.182,22.157,10.0]
[1674235870165,10.0,22.18,22.158,33.86]
[1674235870373,33.82,22.179,22.158,33.86]
[1674235870586,10.0,22.18,22.158,33.86]
[1674235870806,10.0,22.178,22.16,10.0]
[1674235870989,10.0,22.178,22.161,20.0]
[1674235871205,109.4642,22.179,22.163,10.0]
[1674235871414,109.4642,22.179,22.164,33.85]
[1674235871630,109.4642,22.179,22.165,17.0]
[1674235871845,109.4642,22.179,22.162,50.85]
[1674235872059,109.4642,22.179,22.163,10.0]
[1674235872367,109.4642,22.179,22.164,17.0]
[1674235872579,109.4642,22.179,22.165,10.0]
[1674235872789,33.82,22.184,22.166,37.0]
[1674235873004,125.2054,22.187,22.167,33.84]
[1674235873213,125.2054,22.187,22.168,37.0]
[1674235873419,125.2054,22.187,22.169,33.84]
[1674235873636,125.2054,22.187,22.17,37.0]
[1674235875024,125.2054,22.187,22.17,20.0]
[1674235875232,125.2054,22.187,22.161,33.85]
[1674235875233,159.0154,22.187,22.161,33.85]
[1674235875444,33.82,22.185,22.158,33.86]
[1674235876074,10.0,22.184,22.159,10.0]
[1674235876395,33.82,22.183,22.16,33.85]
[1674235876598,33.82,22.183,22.161,17.0]
[1674235876917,10.0,22.182,22.161,17.0]
[1674235877115,33.82,22.181,22.161,17.0]
[1674235877315,33.82,22.181,22.159,17.0]
[1674235877536,10.0,22.182,22.161,10.0]
[1674235877749,10.0,22.182,22.162,71.81]
[1674235877960,10.0,22.182,22.163,10.0]
[1674235878284,10.0,22.184,22.164,70.85]
[1674235878895,10.0,22.184,22.165,10.0]
[1674235879106,10.0,22.184,22.166,70.84]
[1674235879325,125.2054,22.187,22.166,70.84]
[1674235879524,110.52,22.22,22.17,27.44]
[1674235879525,43.8,22.196,22.17,27.44]
[1674235879731,10.0,22.196,22.171,53.84]
[1674235879940,10.0,22.196,22.173,10.0]
[1674235880165,10.0,22.196,22.174,70.83]
[1674235880489,10.0,22.196,22.175,0.96]
[1674235880694,10.0,22.196,22.176,33.83]
[1674235880909,10.0,22.196,22.177,37.96]
[1674235881097,10.0,22.196,22.178,33.83]
[1674235881309,10.0,22.196,22.179,37.0]
[1674235881523,10.0,22.196,22.18,33.82]
[1674235881737,10.0,22.196,22.181,37.0]
[1674235882815,128.7823,22.197,22.181,37.0]
[1674235882816,128.7823,22.197,22.182,54.90057022]
[1674235882986,10.0,22.2,22.183,10.96]
[1674235883201,10.0,22.2,22.184,33.82]
[1674235883518,10.0,22.2,22.185,17.0]
[1674235883836,10.0,22.2,22.182,33.82]
[1674235884049,43.79,22.199,22.181,20.0]
[1674235884372,10.0,22.199,22.177,33.83]
[1674235884584,50.8,22.198,22.171,33.84]
[1674235884901,33.8,22.198,22.168,33.84]
[1674235885119,10.0,22.197,22.169,10.0]
[1674235885332,33.8,22.196,22.17,33.84]
[1674235885641,10.0,22.195,22.17,33.84]
[1674235885842,33.8,22.194,22.168,33.84]
[1674235886050,10.0,22.193,22.169,10.0]
[1674235886250,33.8,22.192,22.17,33.84]
[1674235886460,10.0,22.191,22.171,10.0]
[1674235886670,10.0,22.191,22.172,33.83]
[1674235887106,7.66635313,22.191,22.172,33.83]
[1674235887300,7.66635313,22.191,22.17,33.84]
[1674235887634,61.44,22.19,22.166,33.84]
[1674235887853,10.0,22.189,22.167,20.0]
[1674235888049,33.81,22.188,22.168,33.84]
[1674235888270,33.81,22.188,22.166,33.84]
[1674235888469,10.0,22.187,22.162,33.85]
[1674235888681,33.81,22.186,22.162,33.85]
[1674235888895,10.0,22.185,22.163,10.0]
[1674235889123,33.82,22.184,22.164,33.85]
[1674235889328,10.0,22.185,22.164,33.85]
[1674235889507,10.0,22.185,22.165,10.0]
[1674235889841,10.0,22.185,22.167,10.0]
[1674235890056,10.0,22.187,22.168,51.8]
[1674235890251,10.0,22.187,22.169,20.0]
[1674235890573,10.0,22.187,22.17,50.84]
[1674235890787,10.0,22.187,22.171,20.0]
[1674235891187,33.81,22.186,22.167,20.0]
[1674235891399,10.0,22.187,22.168,33.84]
[1674235891608,10.0,22.187,22.169,20.0]
[1674235892251,10.0,22.187,22.17,17.0]
[1674235892446,10.0,22.187,22.171,53.84]
[1674235892652,10.0,22.187,22.172,17.0]
[1674235892894,10.0,22.187,22.172,50.83]
[1674235893106,10.0,22.187,22.171,20.0]
[1674235893303,33.81,22.186,22.162,33.85]
[1674235893526,33.81,22.186,22.156,33.86]
[1674235893527,27.63,22.18,22.156,33.86]
[1674235893748,33.82,22.179,22.157,20.0]
[1674235893964,10.0,22.178,22.157,20.0]
[1674235894160,33.83,22.177,22.155,33.86]
[1674235894371,143.4917,22.177,22.155,33.86]
[1674235894793,10.0,22.176,22.157,10.0]
[1674235895119,10.0,22.176,22.158,50.86]
[1674235896989,10.0,22.176,22.159,20.0]
[1674235897626,10.0,22.176,22.156,20.0]
[1674235897828,10.0,22.176,22.157,33.86]
[1674235898039,10.0,22.176,22.158,20.0]
[1674235898682,10.0,22.176,22.159,33.85]
[1674235898897,10.0,22.176,22.16,20.0]
[1674235899111,10.0,22.176,22.161,50.85]
[1674235899324,10.0,22.176,22.162,20.0]
[1674235899522,10.0,22.176,22.163,17.0]
[1674235904162,10.0,22.178,22.164,33.85]
[1674235904360,10.0,22.179,22.165,17.0]
[1674235904577,10.0,22.179,22.166,10.0]
[1674235904786,10.0,22.179,22.167,17.0]
[1674235906270,10.0,22.181,22.167,17.0]
[1674235908039,43.82,22.181,22.167,17.0]
[1674235908251,10.0,22.181,22.167,17.0]
[1674235909525,10.0,22.181,22.168,10.0]
[1674235909735,10.0,22.181,22.169,17.0]
[1674235910134,149.0018,22.184,22.17,10.0]
[1674235910135,115.1818,22.184,22.17,10.0]
[1674235910350,115.1818,22.184,22.171,50.84]
[1674235910559,10.0,22.189,22.172,20.0]
[1674235910769,10.0,22.189,22.173,17.0]
[1674235910997,10.0,22.188,22.173,17.0]
[1674235913740,10.0,22.188,22.173,50.83]
[1674235913947,10.0,22.188,22.173,17.0]
[1674235914784,10.0,22.188,22.172,20.0]
[1674235914977,10.0,22.188,22.167,20.0]
[1674235915186,10.0,22.186,22.167,20.0]
[1674235916040,10.0,22.186,22.168,17.0]
[1674235916364,10.0,22.186,22.169,20.0]
[1674235916571,43.82,22.185,22.17,17.0]
[1674235916772,10.0,22.185,22.171,20.0]
[1674235916975,10.0,22.185,22.172,17.0]
[1674235917402,10.0,22.185,22.17,17.0]
[1674235917608,10.0,22.185,22.171,20.0]
[1674235917930,10.0,22.185,22.172,17.0]
[1674235918979,10.0,22.185,22.173,10.0]
[1674235919188,10.0,22.185,22.174,17.0]
[1674235919636,10.0,22.185,22.172,17.0]
[1674235919950,10.0,22.186,22.172,17.0]
[1674235920165,33.8,22.196,22.173,54.97016783]
[1674235920348,257.9938,22.198,22.174,17.96]
[1674235920558,257.9938,22.198,22.175,33.83]
[1674235920779,257.9938,22.198,22.176,37.0]
[1674235920780,33.8,22.196,22.176,37.0]
[1674235921216,33.8,22.196,22.176,17.0]
[1674235921409,33.8,22.194,22.176,17.0]
[1674235921621,43.8,22.192,22.176,17.0]
[1674235922056,10.0,22.192,22.171,33.84]
[1674235922248,43.8,22.192,22.171,33.84]
[1674235922456,43.8,22.192,22.169,10.0]
[1674235922664,10.0,22.192,22.17,33.84]
[1674235923190,10.0,22.192,22.171,10.0]
[1674235923411,10.0,22.192,22.172,50.83]
[1674235923609,10.0,22.192,22.173,10.0]
[1674235923821,10.0,22.192,22.174,50.83]
[1674235924251,10.0,22.192,22.175,10.0]
[1674235924458,10.0,22.192,22.176,17.0]
[1674235924675,10.0,22.192,22.177,10.0]
[1674235924875,10.0,22.192,22.178,17.0]
[1674235925289,43.8,22.195,22.18,10.0]
[1674235925500,10.0,22.196,22.181,37.0]
[1674235925722,114.4359,22.198,22.181,37.0]
[1674235925937,114.4359,22.198,22.181,70.82]
[1674235926126,10.0,22.197,22.182,10.0]
[1674235926339,10.0,22.197,22.181,70.82]
[1674235926340,10.0,22.197,22.183,17.0]
[1674235926567,10.0,22.197,22.182,10.0]
[1674235926779,10.0,22.197,22.183,17.0]
[1674235926985,10.0,22.197,22.181,70.82]
[1674235928134,10.0,22.197,22.181,37.0]
[1674235929388,10.0,22.197,22.181,20.0]
[1674235929601,10.0,22.195,22.181,20.0]
[1674235929813,10.0,22.195,22.178,20.0]
[1674235930225,10.0,22.195,22.177,33.83]
[1674235930472,10.0,22.193,22.172,33.83]
[1674235930653,10.0,22.193,22.171,33.84]
[1674235930871,27.59,22.19,22.168,33.84]
[1674235931079,33.81,22.189,22.163,33.85]
[1674235931285,33.81,22.189,22.161,33.85]
[1674235931505,10.0,22.188,22.161,33.85]
[1674235931826,33.81,22.187,22.161,33.85]
[1674235932341,33.81,22.187,22.157,33.86]
[1674235932541,10.0,22.186,22.158,10.0]
[1674235932750,33.82,22.185,22.159,33.85]
[1674235932957,10.0,22.184,22.159,33.85]
[1674235933288,33.82,22.183,22.159,33.85]
[1674235933497,33.82,22.183,22.16,10.0]
[1674235933712,146.7796,22.183,22.161,33.85]
[1674235933927,10.0,22.182,22.163,10.0]
[1674235934120,10.0,22.182,22.164,17.0]
[1674235935171,43.82,22.182,22.164,17.0]
[1674235935380,10.0,22.182,22.164,17.0]
[1674235935604,10.0,22.182,22.163,17.0]
[1674235935796,10.0,22.182,22.164,10.0]
[1674235936004,10.0,22.182,22.165,17.0]
[1674235936348,112.9596,22.183,22.165,17.0]
[1674235936532,112.9596,22.183,22.166,10.0]
[1674235936739,112.9596,22.183,22.167,17.0]
[1674235936970,112.9596,22.183,22.168,10.0]
[1674235937169,112.9596,22.183,22.169,17.0]
[1674235937377,10.0,22.182,22.167,17.0]
[1674235938221,10.0,22.182,22.166,17.0]
[1674235938642,10.0,22.182,22.167,53.84]
[1674235938847,10.0,22.182,22.168,17.0]
[1674235939059,112.9596,22.183,22.168,17.0]
[1674235939271,33.81,22.187,22.169,20.0]
[1674235939474,33.8,22.192,22.17,55.4]
[1674235939689,150.1874,22.194,22.171,53.84]
[1674235939899,150.1874,22.194,22.172,17.96]
[1674235940118,116.3874,22.194,22.174,10.0]
[1674235940330,116.3874,22.194,22.175,70.83]
[1674235940538,126.3874,22.194,22.175,70.83]
[1674235941377,126.3874,22.194,22.175,50.83]
[1674235942441,126.3874,22.194,22.175,17.0]
[1674235942652,43.8,22.193,22.173,50.83]
[1674235943075,43.8,22.193,22.173,33.83]
[1674235943291,10.0,22.192,22.166,33.84]
[1674235943490,27.63,22.19,22.167,20.0]
[1674235943692,33.81,22.189,22.167,20.0]
[1674235944112,10.0,22.188,22.166,20.0]
[1674235944336,10.0,22.186,22.166,20.0]
[1674235944660,10.0,22.186,22.167,10.0]
[1674235944851,10.0,22.186,22.168,53.84]
[1674235945060,10.0,22.186,22.17,10.0]
[1674235945271,10.0,22.186,22.171,20.0]
[1674235945817,10.0,22.186,22.167,30.0]
[1674235946448,10.0,22.186,22.167,51.14016783]
[1674235946638,10.0,22.186,22.168,33.84]
[1674235946852,10.0,22.186,22.169,37.0]
[1674235947059,10.0,22.188,22.17,10.96]
[1674235947286,10.0,22.188,22.172,10.0]
[1674235947490,10.0,22.188,22.173,33.83]
[1674235947823,10.0,22.188,22.173,50.83]
[1674235948210,10.0,22.188,22.174,10.0]
[1674235948423,10.0,22.188,22.175,17.0]
[1674235949385,10.0,22.188,22.174,17.0]
[1674235949910,10.0,22.188,22.172,17.0]
[1674235951257,10.0,22.188,22.173,10.0]
[1674235951467,43.81,22.191,22.174,17.0]
[1674235951678,10.0,22.191,22.174,50.83]
[1674235951889,10.0,22.191,22.174,71.97016783]
[1674235952117,10.0,22.191,22.175,31.14016783]
[1674235952321,10.0,22.191,22.176,70.83]
[1674235952739,10.0,22.191,22.176,91.97016783]
[1674235954094,10.0,22.191,22.177,10.0]
[1674235954318,10.0,22.191,22.176,91.97016783]
[1674235954319,10.0,22.191,22.178,37.0]
[1674235954534,10.0,22.191,22.179,17.0]
[1674235954733,10.0,22.191,22.18,20.0]
[1674235955055,10.0,22.191,22.181,17.0]
[1674235955246,10.0,22.191,22.182,20.0]
[1674235955453,10.0,22.191,22.183,17.0]
[1674235957561,10.0,22.191,22.174,33.83]
[1674235957772,10.0,22.191,22.171,33.84]
[1674235958089,33.81,22.19,22.17,27.63]
[1674235958295,10.0,22.189,22.169,21.14016783]
[1674235958633,10.0,22.189,22.17,33.84]
[1674235958826,33.81,22.188,22.17,33.84]
[1674235959170,10.0,22.189,22.171,37.0]
[1674235960418,10.0,22.189,22.172,10.0]
[1674235960629,10.0,22.189,22.173,17.0]
[1674235960846,10.0,22.189,22.174,33.83]
[1674235961036,10.0,22.189,22.175,17.0]
[1674235963258,10.0,22.189,22.173,17.0]
[1674235963461,10.0,22.189,22.172,17.0]
[1674235963661,10.0,22.189,22.172,50.83]
[1674235964722,10.0,22.189,22.172,17.0]
[1674235965034,10.0,22.189,22.172,50.83]
[1674235966421,10.0,22.189,22.172,33.83]
[1674235966626,33.81,22.188,22.166,33.84]
[1674235966844,10.0,22.187,22.162,10.0]
[1674235967038,10.0,22.185,22.163,33.85]
[1674235967366,33.82,22.184,22.163,33.85]
[1674235967584,147.2164,22.184,22.163,33.85]
[1674235967773,10.0,22.183,22.163,33.85]
[1674235969484,10.0,22.189,22.163,54.99016783]
[1674235969672,10.0,22.189,22.17,27.44]
[1674235969879,10.0,22.189,22.172,10.0]
[1674235970095,10.0,22.189,22.173,50.83]
[1674235970305,10.0,22.189,22.173,38.14016783]
[1674235970521,10.0,22.189,22.174,65.93016783]
[1674235970735,10.0,22.189,22.175,17.0]
[1674235970950,10.0,22.189,22.176,0.96]
[1674235971269,10.0,22.189,22.176,22.10016783]
[1674235971477,10.0,22.189,22.177,38.14016783]
[1674235972958,10.0,22.189,22.177,21.14016783]
[1674235973156,10.0,22.189,22.171,33.84]
[1674235973370,10.0,22.189,22.172,20.0]
[1674235973579,10.0,22.187,22.172,20.0]
[1674235974080,10.0,22.187,22.169,21.14016783]
[1674235974293,10.0,22.187,22.166,33.84]
[1674235974508,33.81,22.186,22.162,52.88844929]
[1674235974737,10.0,22.185,22.163,33.85]
[1674235974922,33.82,22.184,22.163,33.85]
[1674235975342,151.3282,22.184,22.163,33.85]
[1674235975560,10.0,22.183,22.164,27.0]
[1674235975770,10.0,22.183,22.165,0.96]
[1674235975996,10.0,22.183,22.165,34.81]
[1674235976198,10.0,22.183,22.166,17.0]
[1674235976417,10.0,22.183,22.167,0.96]
[1674235979576,10.0,22.185,22.168,33.84]
[1674235979909,10.0,22.185,22.17,18.34]
[1674235980095,10.0,22.185,22.171,71.8]
[1674235980516,10.0,22.185,22.171,70.84]
[1674235980833,10.0,22.185,22.171,37.0]
[1674235981374,33.82,22.184,22.171,37.0]
[1674235981562,10.0,22.183,22.166,33.84]
[1674235981772,33.82,22.182,22.163,33.85]
[1674235981988,10.0,22.181,22.163,33.85]
[1674235982846,10.0,22.181,22.164,10.0]
[1674235983151,10.0,22.181,22.165,17.0]
[1674235983370,10.0,22.181,22.163,76.73844929]
[1674235983578,10.0,22.181,22.163,42.88844929]
[1674235984104,10.0,22.181,22.164,10.0]
[1674235984303,10.0,22.181,22.163,42.88844929]
[1674235984513,10.0,22.181,22.164,17.0]
[1674235984717,10.0,22.181,22.163,76.73844929]
[1674235984920,10.0,22.181,22.164,10.0]
[1674235986188,10.0,22.181,22.165,17.0]
[1674235987234,10.0,22.181,22.163,76.73844929]
[1674235987465,10.0,22.181,22.159,43.85]
[1674235987783,10.0,22.179,22.16,20.0]
[1674235987995,33.83,22.178,22.16,20.0]
[1674235988185,10.0,22.177,22.16,20.0]
[1674235988719,10.0,22.179,22.16,115.22844929]
[1674235988926,10.0,22.179,22.161,10.0]
[1674235989148,10.0,22.179,22.162,33.85]
[1674235989346,10.0,22.179,22.16,81.37844929]
[1674235989347,10.0,22.179,22.161,33.85]
[1674235989679,10.0,22.179,22.162,37.0]
[1674235990601,10.0,22.179,22.163,10.0]
[1674235990814,10.0,22.179,22.164,17.0]
[1674235991231,10.0,22.179,22.163,17.0]
[1674235991668,10.0,22.179,22.164,10.0]
[1674235992099,43.81,22.189,22.165,51.81]
[1674235992406,10.0,22.189,22.17,18.49]
[1674235992598,10.0,22.189,22.171,50.84]
[1674235992808,10.0,22.189,22.172,20.0]
[1674235993026,10.0,22.189,22.173,51.79]
[1674235993239,10.0,22.189,22.173,50.83]
[1674235993646,10.0,22.189,22.173,33.83]
[1674235994812,10.0,22.189,22.172,20.0]
[1674235995028,10.0,22.189,22.174,10.0]
[1674235995357,10.0,22.19,22.175,37.96]
[1674235995748,10.0,22.192,22.177,10.0]
[1674235995956,10.0,22.192,22.176,33.83]
[1674235995957,9.5,22.191,22.178,37.0]
[1674235996198,9.5,22.191,22.176,33.83]
[1674235996380,9.5,22.191,22.171,33.84]
[1674235996598,9.5,22.191,22.172,10.96]
[1674235996806,9.5,22.191,22.173,33.83]
[1674235997014,9.5,22.191,22.174,10.96]
[1674235997240,10.0,22.192,22.175,33.83]
[1674235997447,10.0,22.192,22.176,17.96]
[1674235997661,10.0,22.194,22.18,18.49]
[1674235997867,10.0,22.194,22.181,61.78]
[1674235998187,10.0,22.194,22.182,20.0]
[1674235998411,10.0,22.194,22.183,50.82]
[1674235999132,10.0,22.194,22.183,17.0]
[1674236004602,10.0,22.194,22.177,33.83]
[1674236004799,43.8,22.194,22.173,33.83]
[1674236005013,43.8,22.194,22.171,33.84]
[1674236005228,43.8,22.194,22.167,33.84]
[1674236005641,43.8,22.194,22.166,33.84]
[1674236006165,43.8,22.194,22.167,17.96]
[1674236006377,43.8,22.194,22.168,33.84]
[1674236006903,43.8,22.194,22.166,33.84]
[1674236007119,10.0,22.193,22.166,33.84]
[1674236007340,10.0,22.191,22.166,33.84]
[1674236007529,33.81,22.19,22.166,33.84]
[1674236007872,10.0,22.189,22.165,147.0053]
[1674236008062,33.81,22.188,22.164,21.14016783]
[1674236008476,10.0,22.187,22.164,21.14016783]